[Event "GER-ch Youth U10W 2020"]
[Site "Willingen"]
[Date "2020.10.30"]
[Round "5.5"]
[White "Hoffmann, Svenja"]
[Black "Zimmermann, Lilly Marie"]
[Result "1-0"]
[ECO "C55"]
[WhiteElo "1219"]
[BlackElo "851"]
[Annotator "NA RC"]
[PlyCount "101"]
[EventDate "2020.10.27"]
[EventType "swiss"]
[EventRounds "7"]
[EventCountry "GER"]
[SourceTitle "playchess.com"]
[Source "ChessBase"]
[SourceQuality "1"]
[TimeControl "40/4500+30:900+30"]

1. e4 {[%emt 0:00:00]} e5 {[%emt 0:00:00]} 2. Nf3 {[%emt 0:00:09]} Nc6 {[%emt 0:00:00]} 3. Bc4 {[%emt 0:00:33]} Nf6 {[%emt 0:00:20]} 4. d4 {[%emt 0:00:40]} d6 {[%emt 0:02:21]} 5. dxe5 {[%emt 0:00:28]} Nxe4 {[%emt 0:00:49]} 6. Qd5 {[%emt 0:00:55]} Be6 {[%emt 0:01:47]} 7. Qxe4 {[%emt 0:01:30]} d5 {[%emt 0:01:12]} 8. Qd3 {[%emt 0:00:42]} dxc4 {[%emt 0:00:21]} 9. Qxd8+ {[%emt 0:00:13]} Rxd8 {[%emt 0:00:18]} 10. Nc3 {[%emt 0:00:47]} Bb4 {[%emt 0:01:07]} 11. Bg5 {[%emt 0:00:31]} Rd7 {[%emt 0:00:49]} 12. O-O {[%emt 0:00:36]} O-O {[%emt 0:00:22]} 13. Rad1 {[%emt 0:01:27]} h6 {[%emt 0:01:20]} 14. Bh4 {[%emt 0:01:03]} Bxc3 {[%emt 0:01:25]} 15. bxc3 {[%emt 0:00:12]} Rxd1 {[%emt 0:01:07]} 16. Rxd1 {[%emt 0:00:09]} Bg4 {[%emt 0:00:25]} 17. Re1 {[%emt 0:01:02]} Re8 {[%emt 0:01:08]} 18. Bg3 {[%emt 0:00:35]} Bxf3 {[%emt 0:00:35]} 19. gxf3 {[%emt 0:00:08]} f6 {[%emt 0:00:21]} 20. e6 {[%emt 0:00:15]} a5 {[%emt 0:00:33]} 21. Bxc7 {[%emt 0:00:57]} b5 {[%emt 0:00:27]} 22. e7 {[%emt 0:05:53]} b4 {[%emt 0:00:39]} 23. cxb4 {[%emt 0:01:15]} axb4 {[%emt 0:00:37]} 24. Re4 {[%emt 0:00:27]} b3 {[%emt 0:00:17]} 25. axb3 {[%emt 0:00:21]} c3 {[%emt 0:00:56]} 26. Bd6 {[%emt 0:01:42]} Kf7 {[%emt 0:00:25]} 27. Kf1 {[%emt 0:01:32]} Nxe7 {[%emt 0:00:34]} 28. Rxe7+ {[%emt 0:00:11]} Rxe7 {[%emt 0:00:15]} 29. Bxe7 {[%emt 0:00:06]} Kxe7 {[%emt 0:00:09]} 30. Ke2 {[%emt 0:00:06]} g5 31. Kd3 Ke6 {[%emt 0:01:35]} 32. Kxc3 {[%emt 0:00:45]} f5 {[%emt 0:00:23]} 33. Kd3 {[%emt 0:00:21]} Ke5 {[%emt 0:00:17]} 34. c4 {[%emt 0:00:37]} Kd6 {[%emt 0:00:21]} 35. b4 {[%emt 0:00:15]} Kc6 {[%emt 0:00:11]} 36. b5+ {[%emt 0:00:24]} Kc5 {[%emt 0:00:11]} 37. Ke3 {[%emt 0:00:07]} h5 {[%emt 0:00:37]} 38. f4 {[%emt 0:00:36]} g4 {[%emt 0:00:19]} 39. f3 {[%emt 0:00:19]} g3 {[%emt 0:00:57]} 40. hxg3 {[%emt 0:00:11]} Kb6 {[%emt 0:00:16]} 41. g4 {[%emt 0:15:30]} fxg4 {[%emt 0:15:34]} 42. fxg4 {[%emt 0:00:10]} h4 {[%emt 0:00:24]} 43. g5 {[%emt 0:00:08]} h3 {[%emt 0:00:05]} 44. Kf3 {[%emt 0:00:08]} Kc5 {[%emt 0:02:05]} 45. g6 {[%emt 0:00:09]} Kxc4 {[%emt 0:00:15]} 46. b6 {[%emt 0:00:08]} Kd5 {[%emt 0:00:31]} 47. b7 {[%emt 0:00:13]} Ke6 {[%emt 0:00:13]} 48. b8=Q {[%emt 0:00:13]} Kf6 {[%emt 0:00:22]} 49. Qe8 {[%emt 0:00:29]} Kg7 {[%emt 0:01:33]} 50. Qf7+ {[%emt 0:00:18]} Kh6 {[%emt 0:00:21]} 51. Qh7# {[%emt 0:00:06]} 1-0

[Event "GER-ch Youth U10W 2020"]
[Site "Willingen"]
[Date "2020.10.30"]
[Round "5.7"]
[White "Bakó, Isabella"]
[Black "John, Linnea"]
[Result "1-0"]
[ECO "B38"]
[WhiteElo "1153"]
[BlackElo "1146"]
[Annotator "NA RC"]
[PlyCount "125"]
[EventDate "2020.10.27"]
[EventType "swiss"]
[EventRounds "7"]
[EventCountry "GER"]
[SourceTitle "playchess.com"]
[Source "ChessBase"]
[SourceQuality "1"]
[TimeControl "40/4500+30:900+30"]

1. e4 {[%emt 0:00:07]} c5 {[%emt 0:00:00]} 2. Nf3 {[%emt 0:00:27]} Nc6 {[%emt 0:00:00]} 3. d4 {[%emt 0:01:01]} cxd4 {[%emt 0:00:08]} 4. Nxd4 {[%emt 0:00:14]} g6 {[%emt 0:00:08]} 5. c4 {[%emt 0:00:50]} Bg7 {[%emt 0:00:44]} 6. Be3 {[%emt 0:00:13]} Nf6 {[%emt 0:01:46]} 7. Nc3 {[%emt 0:00:17]} O-O {[%emt 0:01:04]} 8. Be2 {[%emt 0:01:45]} a6 {[%emt 0:01:30]} 9. Qd2 {[%emt 0:01:58]} Qa5 {[%emt 0:04:33]} 10. Nb3 {[%emt 0:05:26]} Qc7 {[%emt 0:02:38]} 11. c5 {[%emt 0:07:17]} d6 {[%emt 0:02:33]} 12. Bf4 {[%emt 0:07:27]} Ne5 {[%emt 0:06:43]} 13. Nd5 {[%emt 0:14:33]} Nxd5 {[%emt 0:04:19]} 14. Qxd5 {[%emt 0:04:44]} Be6 {[%emt 0:01:56]} 15. cxd6 {[%emt 0:05:02]} Bxd5 16. dxc7 {[%emt 0:00:33]} Bxe4 {[%emt 0:08:17]} 17. O-O {[%emt 0:03:26]} Rac8 {[%emt 0:00:52]} 18. Rac1 {[%emt 0:06:36]} Bd3 {[%emt 0:01:32]} 19. Bxe5 {[%emt 0:03:25]} Bxe2 {[%emt 0:01:59]} 20. Bxg7 {[%emt 0:00:33]} Kxg7 {[%emt 0:10:25]} 21. Rfe1 {[%emt 0:01:25]} Bg4 {[%emt 0:01:52]} 22. Rxe7 {[%emt 0:02:13]} Kf6 {[%emt 0:01:06]} 23. Re4 {[%emt 0:02:05]} Bf5 {[%emt 0:02:45]} 24. Rb4 {[%emt 0:03:02]} b5 {[%emt 0:01:33]} 25. Nc5 {[%emt 0:02:19]} Ra8 {[%emt 0:07:36]} 26. Rf4 {[%emt 0:05:10]} g5 {[%emt 0:01:34]} 27. Nd7+ {[%emt 0:02:41]} Ke7 {[%emt 0:01:38]} 28. Rxf5 {[%emt 0:01:03]} Kxd7 {[%emt 0:01:17]} 29. Rd5+ {[%emt 0:01:10]} Ke6 {[%emt 0:00:30]} 30. Rxg5 {[%emt 0:00:41]} Kf6 {[%emt 0:01:17]} 31. Rgc5 {[%emt 0:00:35]} Rac8 {[%emt 0:00:42]} 32. Rc6+ {[%emt 0:00:40]} Kg7 {[%emt 0:00:11]} 33. Rxa6 {[%emt 0:00:44]} Rfd8 {[%emt 0:00:56]} 34. Rac6 {[%emt 0:01:00]} Re8 {[%emt 0:01:00]} 35. f3 {[%emt 0:00:31]} Re6 {[%emt 0:02:13]} 36. R6c5 {[%emt 0:00:22]} Ra6 {[%emt 0:01:50]} 37. a3 {[%emt 0:00:12]} Ra5 {[%emt 0:00:26]} 38. R1c3 {[%emt 0:01:11]} f6 {[%emt 0:01:26]} 39. b4 {[%emt 0:00:33]} Ra7 {[%emt 0:00:49]} 40. Kf2 {[%emt 0:00:49]} Kf7 {[%emt 0:00:56]} 41. Rxb5 {[%emt 0:00:54]} Raxc7 {[%emt 0:00:20]} 42. Rbc5 {[%emt 0:04:14]} Rxc5 {[%emt 0:00:40]} 43. Rxc5 {[%emt 0:00:32]} Ra8 {[%emt 0:00:26]} 44. Ra5 {[%emt 0:00:39]} Rc8 {[%emt 0:00:11]} 45. Ra7+ {[%emt 0:00:37]} Kg6 {[%emt 0:00:06]} 46. b5 {[%emt 0:00:27]} Rc2+ {[%emt 0:00:44]} 47. Kg3 {[%emt 0:00:16]} Rb2 {[%emt 0:00:41]} 48. a4 {[%emt 0:00:20]} Rb4 {[%emt 0:00:14]} 49. Kf2 {[%emt 0:01:39]} Rb2+ {[%emt 0:00:52]} 50. Kg3 {[%emt 0:02:07]} h6 {[%emt 0:01:13]} 51. Kf4 {[%emt 0:00:54]} Rxg2 {[%emt 0:00:51]} 52. h4 {[%emt 0:00:59]} Re2 {[%emt 0:01:09]} 53. b6 {[%emt 0:01:05]} Rb2 {[%emt 0:00:19]} 54. a5 {[%emt 0:00:15]} Rb5 {[%emt 0:00:19]} 55. b7 {[%emt 0:00:51]} Rxb7 {[%emt 0:01:01]} 56. Rxb7 {[%emt 0:00:18]} Kh5 {[%emt 0:00:17]} 57. Rb1 {[%emt 0:00:43]} f5 {[%emt 0:00:44]} 58. a6 {[%emt 0:00:45]} Kg6 {[%emt 0:00:23]} 59. a7 {[%emt 0:00:13]} Kh5 {[%emt 0:00:17]} 60. a8=Q {[%emt 0:00:47]} Kg6 {[%emt 0:00:32]} 61. Qa6+ {[%emt 0:00:15]} Kh5 {[%emt 0:00:21]} 62. Rg1 {[%emt 0:00:59]} Kxh4 63. Rh1# 1-0

[Event "GER-ch Youth U10W 2020"]
[Site "Willingen"]
[Date "2020.10.30"]
[Round "5.8"]
[White "Blaufuß, Lena"]
[Black "Meier, Viktoria"]
[Result "0-1"]
[ECO "B10"]
[WhiteElo "1073"]
[BlackElo "1316"]
[Annotator "NA RC"]
[PlyCount "94"]
[EventDate "2020.10.27"]
[EventType "swiss"]
[EventRounds "7"]
[EventCountry "GER"]
[SourceTitle "playchess.com"]
[Source "ChessBase"]
[SourceQuality "1"]
[TimeControl "40/4500+30:900+30"]

1. e4 {[%emt 0:00:00]} c6 {[%emt 0:00:00]} 2. Nf3 {[%emt 0:00:14]} d5 {[%emt 0:00:00]} 3. Nc3 {[%emt 0:00:40]} dxe4 {[%emt 0:00:02]} 4. Nxe4 {[%emt 0:00:17]} Bf5 {[%emt 0:00:09]} 5. Ng3 {[%emt 0:00:32]} Bg6 {[%emt 0:00:14]} 6. h4 {[%emt 0:00:31]} h6 {[%emt 0:00:11]} 7. Ne5 {[%emt 0:00:54]} Bh7 {[%emt 0:00:27]} 8. Qh5 {[%emt 0:00:33]} g6 {[%emt 0:01:26]} 9. Qf3 {[%emt 0:00:54]} Qd5 {[%emt 0:00:51]} 10. Qc3 {[%emt 0:05:59]} Bg7 {[%emt 0:02:13]} 11. d4 {[%emt 0:01:37]} e6 {[%emt 0:02:05]} 12. Be3 {[%emt 0:05:25]} Nd7 {[%emt 0:01:48]} 13. f4 {[%emt 0:02:22]} Nxe5 {[%emt 0:01:04]} 14. fxe5 {[%emt 0:01:54]} Ne7 {[%emt 0:00:35]} 15. Rg1 {[%emt 0:02:53]} Nf5 {[%emt 0:00:46]} 16. Nxf5 {[%emt 0:01:31]} exf5 {[%emt 0:01:07]} 17. Bc4 {[%emt 0:01:18]} Qe4 {[%emt 0:02:28]} 18. g3 {[%emt 0:01:36]} b5 {[%emt 0:01:45]} 19. Be2 {[%emt 0:05:33]} h5 {[%emt 0:01:40]} 20. O-O-O {[%emt 0:02:07]} O-O 21. Rd3 Qd5 {[%emt 0:12:07]} 22. Kb1 {[%emt 0:01:45]} a5 {[%emt 0:01:36]} 23. b3 {[%emt 0:04:54]} a4 {[%emt 0:00:42]} 24. Rf1 {[%emt 0:01:37]} axb3 {[%emt 0:01:09]} 25. cxb3 {[%emt 0:00:44]} Rfc8 {[%emt 0:01:13]} 26. Bf3 {[%emt 0:01:06]} Qd7 {[%emt 0:00:42]} 27. d5 {[%emt 0:02:48]} cxd5 {[%emt 0:00:32]} 28. Rxd5 {[%emt 0:01:17]} Rxc3 {[%emt 0:00:31]} 29. Rxd7 {[%emt 0:00:42]} Rxe3 {[%emt 0:00:41]} 30. Bxa8 {[%emt 0:00:36]} Rxg3 {[%emt 0:01:48]} 31. Re1 {[%emt 0:01:26]} f4 {[%emt 0:00:38]} 32. e6 {[%emt 0:01:23]} g5+ {[%emt 0:01:14]} 33. Be4 {[%emt 0:02:50]} fxe6 {[%emt 0:02:23]} 34. Bxh7+ {[%emt 0:00:54]} Kxh7 {[%emt 0:00:26]} 35. hxg5 {[%emt 0:01:19]} f3 {[%emt 0:01:09]} 36. Rf7 {[%emt 0:04:34]} Kg6 {[%emt 0:00:27]} 37. Re7 {[%emt 0:02:13]} f2 {[%emt 0:01:49]} 38. R7xe6+ {[%emt 0:04:30]} Kxg5 {[%emt 0:01:18]} 39. R6e5+ {[%emt 0:04:58]} Bxe5 {[%emt 0:00:26]} 40. Rxe5+ {[%emt 0:00:14]} Kf4 {[%emt 0:00:09]} 41. Rxh5 {[%emt 0:15:27]} f1=Q+ {[%emt 0:15:09]} 42. Kb2 {[%emt 0:00:22]} Qe2+ {[%emt 0:00:06]} 43. Ka3 {[%emt 0:00:26]} Qxh5 {[%emt 0:00:10]} 44. Kb4 {[%emt 0:00:48]} Ke3 {[%emt 0:00:21]} 45. a4 {[%emt 0:00:30]} bxa4 {[%emt 0:00:08]} 46. bxa4 {[%emt 0:00:29]} Qh4+ {[%emt 0:00:10]} 47. Kb5 {[%emt 0:00:25]} Rg5+ {[%emt 0:00:06]} 0-1

[Event "GER-ch Youth U10W 2020"]
[Site "Willingen"]
[Date "2020.10.30"]
[Round "5.9"]
[White "Halas, Neele Zoe"]
[Black "Stepanjan, Tatevik Mia"]
[Result "1/2-1/2"]
[ECO "B32"]
[WhiteElo "1295"]
[BlackElo "1030"]
[Annotator "NA RC"]
[PlyCount "92"]
[EventDate "2020.10.27"]
[EventType "swiss"]
[EventRounds "7"]
[EventCountry "GER"]
[SourceTitle "playchess.com"]
[Source "ChessBase"]
[SourceQuality "1"]
[TimeControl "40/4500+30:900+30"]

1. e4 {[%emt 0:00:00]} c5 {[%emt 0:00:00]} 2. Nf3 {[%emt 0:00:00]} Nc6 {[%emt 0:00:00]} 3. d4 {[%emt 0:00:00]} e6 {[%emt 0:00:22]} 4. Be3 {[%emt 0:02:15]} d6 {[%emt 0:00:57]} 5. dxc5 {[%emt 0:05:02]} dxc5 {[%emt 0:00:22]} 6. Qxd8+ {[%emt 0:00:26]} Nxd8 {[%emt 0:00:05]} 7. c4 {[%emt 0:01:57]} Nf6 {[%emt 0:00:22]} 8. Nc3 {[%emt 0:05:14]} Be7 {[%emt 0:00:56]} 9. h3 {[%emt 0:02:29]} b6 {[%emt 0:00:22]} 10. O-O-O {[%emt 0:02:15]} Bb7 {[%emt 0:00:26]} 11. Bd3 {[%emt 0:03:09]} O-O {[%emt 0:00:17]} 12. g4 {[%emt 0:02:11]} h6 {[%emt 0:00:34]} 13. Rhg1 {[%emt 0:01:22]} Nc6 {[%emt 0:00:35]} 14. Nd2 {[%emt 0:02:40]} Rad8 {[%emt 0:00:34]} 15. Bc2 {[%emt 0:01:09]} Nd4 {[%emt 0:01:42]} 16. e5 {[%emt 0:02:09]} Nd7 {[%emt 0:01:41]} 17. f4 {[%emt 0:00:58]} a5 {[%emt 0:01:06]} 18. Bxd4 {[%emt 0:00:44]} cxd4 {[%emt 0:00:11]} 19. Nb5 {[%emt 0:02:29]} Nc5 {[%emt 0:01:11]} 20. Bb1 {[%emt 0:08:23]} Bc6 {[%emt 0:02:53]} 21. Nf1 {[%emt 0:03:22]} Bxb5 {[%emt 0:00:33]} 22. cxb5 {[%emt 0:00:34]} Rc8 {[%emt 0:00:20]} 23. Kd2 {[%emt 0:04:26]} Rfd8 {[%emt 0:00:58]} 24. Nh2 {[%emt 0:02:43]} d3 {[%emt 0:00:45]} 25. Rg2 {[%emt 0:05:58]} Rc7 {[%emt 0:00:33]} 26. Ke3 {[%emt 0:01:28]} Rcd7 {[%emt 0:00:16]} 27. Rgd2 {[%emt 0:02:36]} g5 {[%emt 0:02:17]} 28. Nf3 {[%emt 0:07:16]} f6 {[%emt 0:04:11]} 29. Bxd3 {[%emt 0:06:01]} fxe5 {[%emt 0:00:27]} 30. fxe5 {[%emt 0:00:27]} Rd5 {[%emt 0:01:56]} 31. Bc4 {[%emt 0:01:43]} Rxd2 {[%emt 0:00:55]} 32. Rxd2 Rxd2 {[%emt 0:00:42]} 33. Nxd2 {[%emt 0:00:34]} Kf7 {[%emt 0:00:29]} 34. Ne4 {[%emt 0:00:56]} Nxe4 {[%emt 0:00:24]} 35. Kxe4 {[%emt 0:00:09]} Bc5 {[%emt 0:00:18]} 36. Kd3 {[%emt 0:01:58]} Ke7 {[%emt 0:00:23]} 37. a3 {[%emt 0:04:18]} Kd7 {[%emt 0:00:22]} 38. a4 {[%emt 0:01:48]} Ke7 {[%emt 0:00:39]} 39. b3 {[%emt 0:00:30]} Kd7 {[%emt 0:00:39]} 40. Ke4 {[%emt 0:00:17]} Ke7 {[%emt 0:00:13]} 41. Kd3 {[%emt 0:15:14]} Kf7 {[%emt 0:15:36]} 42. Ke4 {[%emt 0:00:08]} Ke7 {[%emt 0:00:57]} 43. Kd3 {[%emt 0:00:09]} Kd7 {[%emt 0:00:22]} 44. Ke4 {[%emt 0:00:09]} Ke7 {[%emt 0:00:11]} 45. Kd3 {[%emt 0:00:09]} Kd7 {[%emt 0:00:09]} 46. Ke4 {[%emt 0:00:04]} Ke7 {[%emt 0:00:08]} 1/2-1/2

[Event "GER-ch Youth U10W 2020"]
[Site "Willingen"]
[Date "2020.10.30"]
[Round "5.10"]
[White "Tran, Hanna Emilie Mai Hoa"]
[Black "Richter, Johanna"]
[Result "0-1"]
[ECO "B34"]
[WhiteElo "986"]
[BlackElo "1150"]
[Annotator "NA RC"]
[PlyCount "192"]
[EventDate "2020.10.27"]
[EventType "swiss"]
[EventRounds "7"]
[EventCountry "GER"]
[SourceTitle "playchess.com"]
[Source "ChessBase"]
[SourceQuality "1"]
[TimeControl "40/4500+30:900+30"]

1. e4 {[%emt 0:00:00]} c5 {[%emt 0:00:00]} 2. Nf3 {[%emt 0:00:00]} Nc6 {[%emt 0:00:00]} 3. d4 {[%emt 0:00:08]} cxd4 {[%emt 0:00:00]} 4. Nxd4 {[%emt 0:00:15]} Nf6 {[%emt 0:00:00]} 5. Nc3 {[%emt 0:00:23]} e5 {[%emt 0:00:05]} 6. Ndb5 {[%emt 0:00:30]} d6 {[%emt 0:00:07]} 7. Nd5 {[%emt 0:03:17]} Nxd5 {[%emt 0:01:24]} 8. exd5 {[%emt 0:00:11]} Nb8 {[%emt 0:00:20]} 9. Nc3 {[%emt 0:00:19]} Be7 {[%emt 0:02:35]} 10. Bd3 {[%emt 0:01:00]} O-O {[%emt 0:00:52]} 11. O-O {[%emt 0:00:23]} f5 {[%emt 0:01:12]} 12. f3 {[%emt 0:01:49]} Nd7 {[%emt 0:07:09]} 13. b3 {[%emt 0:06:15]} Nc5 {[%emt 0:03:26]} 14. f4 {[%emt 0:03:09]} Nxd3 {[%emt 0:07:32]} 15. Qxd3 {[%emt 0:00:38]} e4 {[%emt 0:01:45]} 16. Qg3 {[%emt 0:00:19]} Bf6 {[%emt 0:01:52]} 17. Bb2 {[%emt 0:00:15]} Bh4 {[%emt 0:04:49]} 18. Qh3 {[%emt 0:01:25]} Bd7 {[%emt 0:02:56]} 19. Ba3 {[%emt 0:01:16]} Bf6 {[%emt 0:03:57]} 20. Bxd6 {[%emt 0:00:53]} Qb6+ {[%emt 0:04:02]} 21. Kh1 {[%emt 0:02:53]} Qxd6 {[%emt 0:00:21]} 22. Rad1 {[%emt 0:00:34]} Bxc3 {[%emt 0:00:52]} 23. Qxc3 {[%emt 0:00:14]} Rac8 {[%emt 0:01:24]} 24. Qe3 {[%emt 0:00:52]} a6 {[%emt 0:01:40]} 25. c4 {[%emt 0:00:51]} b5 {[%emt 0:00:59]} 26. cxb5 {[%emt 0:00:25]} Bxb5 {[%emt 0:00:06]} 27. Rf2 {[%emt 0:00:10]} Rfd8 {[%emt 0:01:13]} 28. a4 {[%emt 0:00:58]} Be8 {[%emt 0:00:23]} 29. h3 {[%emt 0:00:59]} Rc5 {[%emt 0:03:34]} 30. Rdf1 {[%emt 0:02:54]} Rxd5 {[%emt 0:04:17]} 31. Qa7 {[%emt 0:03:12]} Rd3 {[%emt 0:07:17]} 32. Kh2 {[%emt 0:01:21]} Rxb3 {[%emt 0:01:20]} 33. Rc1 {[%emt 0:00:46]} Qd3 {[%emt 0:11:43]} 34. Kg1 {[%emt 0:00:59]} Rb1 {[%emt 0:01:29]} 35. Rcf1 {[%emt 0:00:44]} Rxf1+ {[%emt 0:00:17]} 36. Rxf1 {[%emt 0:00:10]} Bxa4 {[%emt 0:00:42]} 37. Rc1 {[%emt 0:01:12]} Bb5 {[%emt 0:01:33]} 38. Kh1 {[%emt 0:01:34]} e3 {[%emt 0:01:47]} 39. Kh2 {[%emt 0:00:43]} Qd7 {[%emt 0:00:49]} 40. Qxe3 {[%emt 0:01:00]} Qd2 {[%emt 0:04:20]} 41. Qxd2 {[%emt 0:15:45]} Rxd2 {[%emt 0:15:05]} 42. Rc8+ {[%emt 0:00:04]} Kf7 {[%emt 0:00:08]} 43. Rc7+ {[%emt 0:00:08]} Rd7 {[%emt 0:00:04]} 44. Rc5 {[%emt 0:00:21]} g6 {[%emt 0:00:45]} 45. g4 {[%emt 0:00:16]} Rd2+ {[%emt 0:00:06]} 46. Kg1 {[%emt 0:00:10]} fxg4 {[%emt 0:00:29]} 47. hxg4 {[%emt 0:00:08]} Rd4 {[%emt 0:00:16]} 48. Rc7+ {[%emt 0:00:14]} Rd7 {[%emt 0:00:12]} 49. Rc5 {[%emt 0:00:12]} Rb7 {[%emt 0:00:11]} 50. f5 {[%emt 0:00:14]} g5 {[%emt 0:01:15]} 51. Rc2 {[%emt 0:00:19]} a5 {[%emt 0:00:20]} 52. Rh2 {[%emt 0:00:12]} Kg7 {[%emt 0:00:32]} 53. Rh5 {[%emt 0:00:09]} h6 {[%emt 0:00:28]} 54. f6+ {[%emt 0:00:17]} Kg6 {[%emt 0:00:06]} 55. Rh3 {[%emt 0:00:32]} Rd7 {[%emt 0:00:21]} 56. Rf3 {[%emt 0:00:21]} Rf7 {[%emt 0:00:59]} 57. Rf5 {[%emt 0:00:46]} a4 {[%emt 0:01:28]} 58. Rxb5 {[%emt 0:00:17]} a3 {[%emt 0:00:06]} 59. Ra5 {[%emt 0:00:05]} Rxf6 {[%emt 0:00:33]} 60. Rxa3 {[%emt 0:00:06]} Rf4 {[%emt 0:00:08]} 61. Rg3 {[%emt 0:00:11]} h5 {[%emt 0:03:55]} 62. gxh5+ {[%emt 0:00:22]} Kxh5 {[%emt 0:00:11]} 63. Rh3+ {[%emt 0:00:09]} Kg4 {[%emt 0:00:45]} 64. Rh2 {[%emt 0:00:23]} Rf3 {[%emt 0:00:14]} 65. Rg2+ {[%emt 0:00:12]} Rg3 {[%emt 0:00:04]} 66. Kh1 {[%emt 0:00:40]} Kh4 {[%emt 0:01:05]} 67. Kg1 {[%emt 0:00:13]} Rxg2+ {[%emt 0:00:12]} 68. Kxg2 {[%emt 0:00:07]} Kg4 {[%emt 0:00:02]} 69. Kf2 {[%emt 0:00:17]} Kh3 {[%emt 0:00:16]} 70. Kg1 {[%emt 0:00:20]} Kg3 {[%emt 0:00:13]} 71. Kf1 {[%emt 0:00:08]} Kh2 {[%emt 0:00:03]} 72. Kf2 {[%emt 0:00:17]} g4 {[%emt 0:00:05]} 73. Kf1 {[%emt 0:00:16]} g3 {[%emt 0:00:34]} 74. Ke2 {[%emt 0:00:12]} g2 {[%emt 0:00:03]} 75. Kd3 {[%emt 0:00:06]} g1=Q {[%emt 0:00:10]} 76. Ke4 {[%emt 0:00:13]} Qd1 {[%emt 0:00:24]} 77. Ke5 {[%emt 0:00:32]} Qd3 {[%emt 0:00:17]} 78. Ke6 {[%emt 0:00:23]} Qd4 {[%emt 0:00:05]} 79. Kf5 {[%emt 0:00:08]} Kh3 {[%emt 0:00:21]} 80. Ke6 {[%emt 0:00:10]} Qc5 {[%emt 0:00:09]} 81. Kf6 {[%emt 0:00:05]} Kh4 {[%emt 0:00:07]} 82. Ke6 {[%emt 0:00:09]} Kg4 {[%emt 0:00:35]} 83. Kf6 {[%emt 0:00:07]} Qf5+ {[%emt 0:00:13]} 84. Ke7 {[%emt 0:00:06]} Qg6 {[%emt 0:00:08]} 85. Kd7 {[%emt 0:00:05]} Kf4 {[%emt 0:00:05]} 86. Kc7 {[%emt 0:00:05]} Ke5 {[%emt 0:00:06]} 87. Kb7 {[%emt 0:00:08]} Kd5 {[%emt 0:00:09]} 88. Kc7 {[%emt 0:00:10]} Qd6+ {[%emt 0:00:20]} 89. Kb7 {[%emt 0:00:06]} Qc6+ {[%emt 0:00:24]} 90. Ka7 {[%emt 0:00:13]} Qh6 {[%emt 0:00:06]} 91. Kb7 {[%emt 0:00:06]} Kc5 {[%emt 0:00:05]} 92. Kc7 {[%emt 0:00:08]} Qh7+ {[%emt 0:00:04]} 93. Kd8 {[%emt 0:00:10]} Kc6 {[%emt 0:00:06]} 94. Ke8 {[%emt 0:00:07]} Kd6 {[%emt 0:00:20]} 95. Kf8 {[%emt 0:00:04]} Ke6 {[%emt 0:00:20]} 96. Ke8 {[%emt 0:00:05]} Qh8# {[%emt 0:00:03]} 0-1

[Event "GER-ch Youth U10W 2020"]
[Site "Willingen"]
[Date "2020.10.30"]
[Round "5.11"]
[White "Will, Elina"]
[Black "Zhou, Leyi Charlotte"]
[Result "1-0"]
[ECO "C44"]
[WhiteElo "1149"]
[BlackElo "1071"]
[Annotator "NA RC"]
[PlyCount "83"]
[EventDate "2020.10.27"]
[EventType "swiss"]
[EventRounds "7"]
[EventCountry "GER"]
[SourceTitle "playchess.com"]
[Source "ChessBase"]
[SourceQuality "1"]
[TimeControl "40/4500+30:900+30"]

1. e4 {[%emt 0:00:00]} e5 {[%emt 0:00:00]} 2. Nf3 {[%emt 0:00:00]} Nc6 {[%emt 0:00:00]} 3. d4 {[%emt 0:00:00]} exd4 {[%emt 0:00:00]} 4. Nxd4 {[%emt 0:00:00]} Qf6 {[%emt 0:00:00]} 5. c3 {[%emt 0:00:57]} Bc5 {[%emt 0:00:04]} 6. Be3 {[%emt 0:00:08]} Nge7 {[%emt 0:00:12]} 7. Be2 {[%emt 0:01:14]} Qg6 {[%emt 0:00:20]} 8. Bf3 {[%emt 0:00:30]} Ne5 {[%emt 0:01:38]} 9. O-O {[%emt 0:01:43]} d6 {[%emt 0:01:48]} 10. Nd2 {[%emt 0:00:42]} Bh3 {[%emt 0:03:36]} 11. Re1 {[%emt 0:01:41]} Nd3 {[%emt 0:02:23]} 12. Qe2 {[%emt 0:02:44]} Nxe1 {[%emt 0:03:36]} 13. Rxe1 {[%emt 0:00:32]} O-O {[%emt 0:03:41]} 14. Kh1 {[%emt 0:01:54]} Bd7 {[%emt 0:03:30]} 15. Nc2 {[%emt 0:14:35]} Bb6 {[%emt 0:02:32]} 16. Na3 {[%emt 0:09:19]} Qe6 {[%emt 0:02:04]} 17. Ndc4 {[%emt 0:01:40]} Bxe3 {[%emt 0:01:30]} 18. Nxe3 {[%emt 0:01:43]} Rfe8 {[%emt 0:05:30]} 19. c4 {[%emt 0:01:49]} Nc6 {[%emt 0:01:00]} 20. Nd5 {[%emt 0:06:05]} Rac8 {[%emt 0:03:41]} 21. Nb5 {[%emt 0:02:15]} Qe5 {[%emt 0:05:02]} 22. b3 {[%emt 0:02:49]} a6 {[%emt 0:01:45]} 23. Nbxc7 {[%emt 0:06:33]} Red8 {[%emt 0:01:02]} 24. Rd1 {[%emt 0:05:33]} Nd4 {[%emt 0:02:42]} 25. Rxd4 {[%emt 0:00:45]} Qxd4 {[%emt 0:02:06]} 26. Ne7+ {[%emt 0:00:09]} Kf8 {[%emt 0:00:48]} 27. Nxc8 {[%emt 0:06:45]} Rxc8 {[%emt 0:00:37]} 28. Nd5 {[%emt 0:00:33]} Qa1+ {[%emt 0:01:09]} 29. Qd1 {[%emt 0:00:37]} Qxa2 {[%emt 0:02:01]} 30. Nb6 {[%emt 0:00:22]} Rc6 {[%emt 0:04:06]} 31. Nxd7+ {[%emt 0:00:16]} Ke7 {[%emt 0:00:16]} 32. e5 {[%emt 0:01:07]} Kxd7 {[%emt 0:04:30]} 33. Bxc6+ {[%emt 0:00:10]} bxc6 {[%emt 0:00:38]} 34. Qxd6+ {[%emt 0:00:13]} Ke8 {[%emt 0:00:47]} 35. Qxc6+ {[%emt 0:00:10]} Kf8 {[%emt 0:00:27]} 36. Qd6+ {[%emt 0:00:20]} Ke8 {[%emt 0:00:07]} 37. Qc6+ {[%emt 0:04:35]} Kd8 {[%emt 0:05:34]} 38. Qd6+ {[%emt 0:00:08]} Kc8 {[%emt 0:00:17]} 39. Qf8+ {[%emt 0:00:20]} Kb7 {[%emt 0:00:16]} 40. Qxf7+ {[%emt 0:00:08]} Kc6 {[%emt 0:00:44]} 41. Qe6+ {[%emt 0:15:09]} Kc5 {[%emt 0:15:19]} 42. Qd6# {[%emt 0:00:10]} 1-0